bitfinex/quotes_BTCUSD_20230120
["timestamp","ask_amount","ask_price","bid_price","bid_amount"]
[1674182816179,6.4e-07,21110.0,21109.0,1.53153051]
[1674182816463,0.10843264,21110.0,21109.0,1.75795547]
[1674182817276,6.4e-07,21110.0,21109.0,1.75795547]
[1674182817528,6.4e-07,21110.0,21109.0,2.05868947]
[1674182821783,6.4e-07,21110.0,21109.0,2.41061475]
[1674182823586,6.4e-07,21110.0,21109.0,2.05868947]
[1674182824902,6.4e-07,21110.0,21109.0,1.83226451]
[1674182826676,6.4e-07,21110.0,21109.0,1.53153051]
[1674182829170,6.4e-07,21110.0,21109.0,1.86505051]
[1674182831339,6.4e-07,21110.0,21109.0,2.92462646]
[1674182831855,6.4e-07,21110.0,21109.0,2.92462489]
[1674182832111,6.4e-07,21110.0,21109.0,3.37549716]
[1674182832377,6.4e-07,21110.0,21109.0,2.31592278]
[1674182832631,6.4e-07,21110.0,21109.0,2.42812927]
[1674182833421,6.4e-07,21110.0,21109.0,3.3755063]
[1674182833695,6.4e-07,21110.0,21109.0,3.95180263]
[1674182834223,6.4e-07,21110.0,21109.0,4.06377373]
[1674182834783,6.4e-07,21110.0,21109.0,3.95312222]
[1674182835338,6.4e-07,21110.0,21109.0,3.83959125]
[1674182835594,6.4e-07,21110.0,21109.0,4.31679294]
[1674182835851,6.4e-07,21110.0,21109.0,4.43032052]
[1674182836123,6.4e-07,21110.0,21109.0,4.76637985]
[1674182836365,6.4e-07,21110.0,21109.0,4.87703474]
[1674182836636,6.4e-07,21110.0,21109.0,4.70889788]
[1674182837185,6.4e-07,21110.0,21109.0,4.8791835]
[1674182837715,6.4e-07,21110.0,21109.0,4.98912597]
[1674182837981,6.4e-07,21110.0,21109.0,4.8403497]
[1674182839207,6.4e-07,21110.0,21109.0,4.95381326]
[1674182839464,10.0,21111.0,21110.0,0.43834592]
[1674182839726,10.0,21111.0,21110.0,2.77956166]
[1674182840238,10.0,21111.0,21110.0,2.6660678]
[1674182841506,10.0,21111.0,21110.0,3.61337065]
[1674182841762,10.0,21111.0,21110.0,4.28329405]
[1674182842826,10.0,21111.0,21110.0,2.87255259]
[1674182844389,10.0,21111.0,21110.0,4.39678509]
[1674182844925,10.0,21111.0,21110.0,3.99008479]
[1674182845452,10.0,21111.0,21110.0,4.2864021]
[1674182845707,10.0,21111.0,21110.0,4.39987717]
[1674182845969,10.0,21111.0,21110.0,4.2864021]
[1674182846458,10.0,21111.0,21110.0,4.51338692]
[1674182846733,10.0,21111.0,21110.0,4.65919359]
[1674182846734,9.95,21111.0,21110.0,4.65919359]
[1674182846974,9.95,21111.0,21110.0,5.12713141]
[1674182847244,9.95,21111.0,21110.0,4.78656659]
[1674182847506,9.95,21111.0,21110.0,4.90002242]
[1674182847761,9.95,21111.0,21110.0,5.01355141]
[1674182848027,9.95,21111.0,21110.0,4.78656659]
[1674182848301,9.95,21111.0,21110.0,4.90002826]
[1674182848552,9.95,21111.0,21110.0,4.89998243]
[1674182848847,9.82036175,21111.0,21110.0,4.54556776]
[1674182849380,9.82036175,21111.0,21110.0,4.84556776]
[1674182849657,9.82036175,21111.0,21110.0,4.65914776]
[1674182850988,9.82036175,21111.0,21110.0,4.95914776]
[1674182851509,9.82036175,21111.0,21110.0,4.86614776]
[1674182851767,9.82036175,21111.0,21110.0,4.65814776]
[1674182852024,7.85491475,21111.0,21110.0,5.23786294]
[1674182852282,7.85491475,21111.0,21110.0,5.46468461]
[1674182852543,7.85491475,21111.0,21110.0,5.23786294]
[1674182853057,7.85491475,21111.0,21110.0,5.05095924]
[1674182853865,7.85491475,21111.0,21110.0,4.88087591]
[1674182854193,7.85491475,21111.0,21110.0,5.46463578]
[1674182854640,7.85491475,21111.0,21110.0,5.35096334]
[1674182854889,7.85491475,21111.0,21110.0,5.35096322]
[1674182855153,7.85491475,21111.0,21110.0,5.23786294]
[1674182855154,6.9075189,21111.0,21110.0,5.23786294]
[1674182855679,6.9075189,21111.0,21110.0,5.46461044]
[1674182855946,5.97989186,21111.0,21110.0,5.47471294]
[1674182856190,4.9914554,21111.0,21110.0,5.19095307]
[1674182856462,0.86945003,21111.0,21110.0,5.5183415]
[1674182856742,0.00450567,21112.0,21110.0,5.18110789]
[1674182856985,0.00450567,21112.0,21111.0,4.77329381]
[1674182857256,0.00450567,21112.0,21111.0,5.72066581]
[1674182857790,5.67e-06,21112.0,21111.0,5.72066581]
[1674182858622,5.67e-06,21112.0,21111.0,5.81266581]
[1674182858893,0.00546856,21117.0,21111.0,7.80369367]
[1674182859150,0.00546856,21117.0,21116.0,0.97540169]
[1674182859489,0.00546856,21117.0,21116.0,3.39358166]
[1674182859492,0.00546856,21117.0,21116.0,3.19926069]
[1674182861242,0.00546856,21117.0,21116.0,3.29126069]
[1674182862056,0.00546856,21117.0,21116.0,3.70159298]
[1674182862274,0.00546856,21117.0,21116.0,3.29126069]
[1674182865430,0.00546856,21117.0,21116.0,3.69681505]
[1674182865684,0.00546856,21117.0,21116.0,3.29126069]
[1674182867495,0.00546856,21117.0,21116.0,3.65916064]
[1674182868375,0.00546856,21117.0,21116.0,3.17409416]
[1674182868602,0.00546856,21117.0,21116.0,2.67589416]
[1674182870059,0.00546856,21117.0,21116.0,1.72874616]
[1674182870323,0.56888236,21117.0,21116.0,0.413063]
[1674182870526,0.56888236,21117.0,21116.0,0.092]
[1674182870970,0.46640236,21117.0,21116.0,0.092]
[1674182871186,0.93995436,21117.0,21113.0,0.89696415]
[1674182871401,1.41450636,21117.0,21116.0,0.085]
[1674182871623,1.41350636,21117.0,21114.0,0.85145113]
[1674182872077,1.41450636,21117.0,21116.0,0.085]
[1674182873011,0.95357256,21117.0,21113.0,0.30344482]
[1674182873229,0.95357256,21117.0,21113.0,0.47720169]
[1674182873230,0.35335384,21116.0,21113.0,0.47720169]
[1674182873453,0.35335384,21116.0,21114.0,0.330065]
[1674182873675,0.35335384,21116.0,21115.0,0.316798]
[1674182874336,0.82692784,21116.0,21115.0,0.316798]
[1674182874563,0.83492784,21116.0,21114.0,0.007]
[1674182875021,0.82692784,21116.0,21115.0,0.324202]
[1674182875237,0.83492784,21116.0,21115.0,0.007]
[1674182875938,0.82692784,21116.0,21113.0,0.47720169]
[1674182876182,0.83492784,21116.0,21114.0,0.007]
[1674182876413,0.82692784,21116.0,21115.0,0.313016]
[1674182876849,0.83492784,21116.0,21115.0,0.320016]
[1674182877082,0.473574,21116.0,21115.0,0.313016]
[1674182877346,0.481574,21116.0,21114.0,0.007]
[1674182877530,0.481574,21116.0,21111.0,0.573668]
[1674182877531,0.38587342,21115.0,21111.0,0.96059795]
[1674182877753,0.38587342,21115.0,21112.0,0.47720169]
[1674182877988,0.85947042,21115.0,21112.0,0.47720169]
[1674182878935,0.85947042,21115.0,21114.0,0.007]
[1674182879158,0.85947042,21115.0,21112.0,0.47720169]
[1674182879603,0.86747042,21115.0,21112.0,0.48420169]
[1674182879819,0.85947042,21115.0,21113.0,0.311519]
[1674182880070,0.85947042,21115.0,21114.0,0.00706]
[1674182880071,0.86747042,21115.0,21114.0,0.00706]
[1674182880292,0.85947042,21115.0,21114.0,6e-05]
[1674182880514,0.86747042,21115.0,21114.0,6e-05]
[1674182880737,0.85947042,21115.0,21114.0,6e-05]
[1674182880963,0.86747042,21115.0,21114.0,0.00706]
[1674182881191,0.955193,21115.0,21114.0,0.00706]
[1674182881411,1.255193,21115.0,21114.0,0.00706]
[1674182881854,1.36804398,21115.0,21114.0,0.00706]
[1674182882108,1.46804398,21115.0,21114.0,0.00706]
[1674182882321,1.46004398,21115.0,21114.0,6e-05]
[1674182882545,1.46304398,21115.0,21114.0,0.00206]
[1674182883007,1.247193,21115.0,21114.0,6e-05]
[1674182883227,1.332193,21115.0,21114.0,0.00106]
[1674182883447,1.247193,21115.0,21114.0,6e-05]
[1674182883681,1.323193,21115.0,21114.0,0.00106]
[1674182884110,1.423193,21115.0,21114.0,0.00106]
[1674182884801,1.323193,21115.0,21114.0,0.00106]
[1674182885492,1.423193,21115.0,21114.0,0.00106]
[1674182887328,1.323193,21115.0,21114.0,0.00106]
[1674182887609,1.423193,21115.0,21114.0,0.00106]
[1674182888434,1.423193,21115.0,21114.0,0.001]
[1674182890060,1.53604398,21115.0,21114.0,0.001]
[1674182890594,1.423193,21115.0,21114.0,0.001]
[1674182890595,1.53604398,21115.0,21114.0,0.001]
[1674182891121,1.423193,21115.0,21114.0,0.001]
[1674182893457,1.423193,21115.0,21114.0,0.00093564]
[1674182893715,1.73223218,21115.0,21114.0,0.00093564]
[1674182895300,1.74888719,21115.0,21114.0,0.00093564]
[1674182895597,1.323193,21115.0,21114.0,0.00093564]
[1674182895852,1.78280308,21115.0,21114.0,0.00093564]
[1674182896114,1.68280308,21115.0,21114.0,0.00093564]
[1674182896366,1.323193,21115.0,21114.0,0.00093564]
[1674182896632,1.423193,21115.0,21114.0,0.00093564]
[1674182899884,1.82464508,21115.0,21114.0,0.00093564]
[1674182900719,1.423193,21115.0,21114.0,0.00093564]
[1674182902809,1.53604398,21115.0,21114.0,0.00093564]
[1674182903622,1.423193,21115.0,21114.0,0.00093564]
[1674182905001,1.53604398,21115.0,21114.0,0.00093564]
[1674182907120,2.10137526,21115.0,21114.0,0.00093564]
[1674182907384,0.1,21114.0,21110.0,0.41380587]
[1674182907662,0.947292,21113.0,21109.0,0.46846075]
[1674182908203,0.947292,21113.0,21109.0,0.01739751]
[1674182908485,0.3,21112.0,21109.0,0.01739751]
[1674182908745,0.44200797,21111.0,21109.0,0.02239751]
[1674182909307,0.44200797,21111.0,21109.0,0.01739751]
[1674182910391,0.44200797,21111.0,21109.0,0.02239751]
[1674182910910,0.44200797,21111.0,21109.0,0.01739751]
[1674182910912,0.45000797,21111.0,21109.0,0.02239751]
[1674182911439,0.46452807,21110.0,21109.0,0.02233751]
[1674182912985,0.46452807,21110.0,21109.0,0.01733751]
[1674182913250,0.46452807,21110.0,21109.0,0.02233751]
[1674182913251,0.47252807,21110.0,21109.0,0.02233751]
[1674182913774,0.47252807,21110.0,21109.0,0.01470227]
[1674182915928,1.41994607,21110.0,21109.0,0.01470227]
[1674182916182,1.71994607,21110.0,21109.0,0.01470227]
[1674182916441,1.71194607,21110.0,21109.0,0.00970227]
[1674182917035,1.71994607,21110.0,21109.0,0.01470227]
[1674182917233,1.65039642,21110.0,21109.0,0.01470227]
[1674182917485,1.64539642,21110.0,21109.0,0.01170227]
[1674182917742,2.02123126,21110.0,21109.0,0.00970227]
[1674182918013,2.09823126,21110.0,21109.0,0.01070227]
[1674182918326,1.71973283,21110.0,21109.0,0.01070227]
[1674182918813,1.71974345,21110.0,21109.0,0.01070227]
[1674182919094,1.7983058,21110.0,21109.0,0.01070227]
[1674182919373,1.19403079,21110.0,21109.0,0.01070227]
[1674182919643,1.29403079,21110.0,21109.0,0.01070227]
[1674182920431,1.81973274,21110.0,21109.0,0.01070227]
[1674182920956,2.19948784,21110.0,21109.0,0.01070227]
[1674182921231,2.67319684,21110.0,21109.0,0.01070227]
[1674182921454,2.44749489,21110.0,21109.0,0.01070227]
[1674182921748,2.67356611,21110.0,21109.0,0.01070227]
[1674182922320,2.44749489,21110.0,21109.0,0.01070227]
[1674182922590,2.67357991,21110.0,21109.0,0.01070227]
[1674182922861,2.44749489,21110.0,21109.0,0.01070227]
[1674182923378,2.76762659,21110.0,21109.0,0.01070227]
[1674182924171,2.76762659,21110.0,21109.0,0.0006377]
[1674182924429,2.44749489,21110.0,21109.0,0.0006377]
[1674182925253,2.37049489,21110.0,21107.0,0.01617752]
[1674182925460,2.46149489,21110.0,21107.0,0.01617752]
[1674182925462,2.28738849,21110.0,21107.0,0.01617752]
[1674182925717,1.68155594,21110.0,21107.0,0.01617752]
[1674182925985,1.68155594,21110.0,21107.0,0.21049849]
[1674182926270,1.512127,21110.0,21107.0,0.21049849]
[1674182926553,1.421127,21110.0,21107.0,0.21049849]
[1674182926827,1.030418,21110.0,21107.0,0.01717752]
[1674182927348,1.030418,21110.0,21108.0,0.324595]
[1674182927647,1.030418,21110.0,21109.0,0.313919]
[1674182927931,0.947418,21110.0,21109.0,0.313919]
[1674182928196,1.023418,21110.0,21107.0,0.41184025]
[1674182928467,0.947418,21110.0,21107.0,0.40984025]
[1674182928770,0.947418,21110.0,21108.0,0.328565]
[1674182929033,0.947418,21110.0,21109.0,0.324787]
[1674182929306,0.947418,21110.0,21107.0,0.40984025]
[1674182930089,0.947418,21110.0,21108.0,0.306889]
[1674182930354,0.947418,21110.0,21109.0,0.338715]
[1674182930628,0.954418,21110.0,21107.0,0.42484025]
[1674182931148,0.947418,21110.0,21108.0,0.318954]
[1674182931456,0.955418,21110.0,21109.0,0.322753]
[1674182931714,0.947418,21110.0,21107.0,0.40984025]
[1674182932515,0.947418,21110.0,21107.0,0.01617752]
[1674182932955,0.954418,21110.0,21107.0,0.03117752]
[1674182933237,0.947418,21110.0,21107.0,0.01617752]
[1674182933493,1.32670424,21110.0,21107.0,0.01617752]
[1674182933762,1.32670424,21110.0,21107.0,0.03117752]
[1674182933763,1.12484694,21110.0,21107.0,0.03117752]
[1674182934315,0.29722182,21109.0,21107.0,0.03117752]
[1674182934587,0.473754,21108.0,21107.0,0.03117752]
[1674182935372,0.473754,21108.0,21107.0,0.01537148]
[1674182935633,0.473754,21108.0,21107.0,0.01637148]
[1674182935904,0.473754,21108.0,21107.0,0.01537148]
[1674182936191,0.955508,21108.0,21107.0,0.02837148]
[1674182936450,1.255508,21108.0,21107.0,0.02837148]
[1674182937526,1.255437,21108.0,21107.0,0.02837148]
[1674182937791,0.955437,21108.0,21107.0,0.02837148]
[1674182938535,0.008,21108.0,21107.0,0.81630673]
[1674182939042,0.008,21108.0,21107.0,0.35722848]
[1674182941727,0.11457,21108.0,21107.0,0.35722848]
[1674182942008,0.11457,21108.0,21107.0,0.02837148]
[1674182942009,0.990804,21108.0,21107.0,0.02837148]
[1674182943351,0.584234,21108.0,21107.0,0.02837148]
[1674182943876,0.884234,21108.0,21107.0,0.02837148]
[1674182945757,0.884234,21108.0,21107.0,2.02837148]
[1674182946823,0.781754,21108.0,21107.0,2.02837148]
[1674182953306,0.481754,21108.0,21107.0,2.02837148]
[1674182953564,0.481754,21108.0,21107.0,2.35606348]
[1674182954867,0.008,21108.0,21107.0,2.93126179]
[1674182955176,0.008,21108.0,21107.0,2.73694082]
[1674182956706,0.008,21108.0,21107.0,5.03584357]
[1674182956978,0.008,21108.0,21107.0,3.78081717]
[1674182957260,0.008,21108.0,21107.0,4.84149105]
[1674182957526,0.008,21108.0,21107.0,5.19035406]
[1674182957838,0.008,21108.0,21107.0,4.24294595]
[1674182958102,0.58661577,21114.0,21107.0,4.22994595]
[1674182958357,0.58661577,21114.0,21108.0,1.09111366]
[1674182958626,1.06023477,21114.0,21109.0,1.94945666]
[1674182958887,1.06023477,21114.0,21110.0,0.61389297]
[1674182959198,1.06023477,21114.0,21111.0,0.31211]
[1674182959461,0.947254,21114.0,21112.0,0.309006]
[1674182959716,0.947254,21114.0,21113.0,0.311369]
[1674182960002,0.46942894,21116.0,21113.0,0.311369]
[1674182960003,0.58657177,21116.0,21113.0,0.311369]
[1674182960275,0.001,21114.0,21113.0,0.19432097]
[1674182960551,0.58657177,21116.0,21113.0,0.19432097]
[1674182960552,0.58657177,21116.0,21113.0,0.325528]
[1674182960819,0.016,21114.0,21113.0,0.20032097]
[1674182961079,0.016,21114.0,21113.0,0.322534]
[1674182962448,0.016,21114.0,21113.0,0.03084221]
[1674182962721,0.321,21116.0,21113.0,0.03684221]
[1674182962984,0.3,21116.0,21114.0,0.338242]
[1674182963275,0.021,21114.0,21113.0,0.006]
[1674182963531,0.59200933,21117.0,21112.0,1.35979053]
[1674182963793,0.321,21116.0,21113.0,0.319888]
[1674182964062,0.90755477,21116.0,21113.0,0.006]
[1674182964323,0.11298077,21115.0,21110.0,0.37148642]
[1674182964860,0.597104,21114.0,21113.0,0.006]
[1674182964863,0.576104,21114.0,21110.0,0.47148642]
[1674182965116,0.876104,21114.0,21110.0,0.47148642]
[1674182965372,0.576104,21114.0,21111.0,0.33623]
[1674182965631,0.576104,21114.0,21112.0,0.304589]
[1674182965890,0.576104,21114.0,21110.0,0.47148642]
[1674182965891,0.576104,21114.0,21113.0,0.006]
[1674182966151,0.876104,21114.0,21110.0,0.47148642]
[1674182966427,0.878104,21114.0,21110.0,0.47148642]
[1674182966968,0.876104,21114.0,21111.0,0.322162]
[1674182967256,0.876104,21114.0,21110.0,0.47148642]
[1674182967520,0.3,21113.0,21110.0,0.54248642]
[1674182967784,0.3,21113.0,21111.0,0.313761]
[1674182968065,0.3,21113.0,21112.0,0.329481]
[1674182968618,0.3,21113.0,21112.0,0.333784]
[1674182968882,0.3,21113.0,21110.0,0.54248642]
[1674182969141,0.3,21113.0,21110.0,0.47148642]
[1674182969426,0.302,21113.0,21111.0,0.071]
[1674182969685,0.3,21113.0,21112.0,0.36315]
[1674182969985,0.301,21113.0,21112.0,0.33915]
[1674182970244,0.301,21113.0,21110.0,0.47148642]
[1674182970505,0.303,21113.0,21110.0,0.54248642]
[1674182970766,0.3,21113.0,21111.0,0.320507]
[1674182971025,0.301,21113.0,21112.0,0.352341]
[1674182971325,0.001,21113.0,21112.0,0.352341]
[1674182971588,0.001,21113.0,21112.0,0.024]
[1674182971862,0.94727,21114.0,21110.0,0.47148642]
[1674182972146,0.002,21113.0,21110.0,0.54248642]
[1674182972407,0.947271,21114.0,21111.0,0.334171]
[1674182972689,0.3,21113.0,21110.0,0.47148642]
[1674182972944,0.3,21113.0,21110.0,0.47448642]
[1674182973209,0.3,21113.0,21111.0,0.329534]
[1674182973483,0.947272,21114.0,21111.0,0.329534]
[1674182973484,0.94727,21114.0,21112.0,0.328441]
[1674182973752,0.474635,21114.0,21113.0,0.340516]
[1674182974019,0.474635,21114.0,21111.0,0.37458754]
[1674182974541,0.473635,21114.0,21111.0,0.35058754]
[1674182974844,0.002,21113.0,21112.0,0.320488]
[1674182975100,0.473635,21114.0,21112.0,0.320488]
[1674182975543,0.474635,21114.0,21111.0,0.37458754]
[1674182975546,0.473635,21114.0,21111.0,0.35058754]
[1674182975796,0.022,21113.0,21112.0,0.003]
[1674182976114,0.473635,21114.0,21112.0,0.326624]
[1674182976350,0.495635,21114.0,21113.0,0.325783]
[1674182976628,0.495635,21114.0,21112.0,0.003]
[1674182976883,0.473618,21115.0,21112.0,0.45777984]
[1674182977145,0.473618,21115.0,21113.0,0.334625]
[1674182977413,0.473618,21115.0,21114.0,0.324242]
[1674182977705,0.473618,21115.0,21112.0,0.45777984]
[1674182978281,0.022,21113.0,21112.0,0.46077984]
[1674182978551,0.473618,21115.0,21112.0,0.77982884]
[1674182978826,0.494618,21115.0,21113.0,0.320939]
[1674182979096,0.47902656,21117.0,21114.0,0.319581]
[1674182979386,0.95259756,21117.0,21115.0,0.31952]
[1674182979645,0.95259756,21117.0,21116.0,0.338432]
[1674182979911,0.95259756,21117.0,21113.0,0.770708]
[1674182980735,0.00546856,21117.0,21114.0,0.310618]
[1674182980987,0.00546856,21117.0,21115.0,0.324015]
[1674182981269,0.00546856,21117.0,21114.0,0.473614]
[1674182981270,0.00546856,21117.0,21116.0,0.30772]
[1674182982145,0.02646856,21117.0,21116.0,0.30772]
[1674182982913,0.00546856,21117.0,21116.0,0.30772]
[1674182983170,0.02646856,21117.0,21116.0,0.31372]
[1674182984237,0.00546856,21117.0,21116.0,0.30772]
[1674182984504,0.02646856,21117.0,21116.0,0.31372]
[1674182987150,0.02646856,21117.0,21116.0,0.31361018]
[1674182988487,0.02646856,21117.0,21116.0,0.41361018]
[1674182988753,0.02646856,21117.0,21116.0,0.31361018]
[1674182991697,0.12894856,21117.0,21116.0,0.31361018]
[1674182991957,0.71548133,21117.0,21116.0,0.006]
[1674182992222,1.30125633,21117.0,21116.0,0.006]
[1674182992479,1.77480833,21117.0,21116.0,0.006]
[1674182992748,1.8312565,21117.0,21116.0,0.006]
[1674182993008,2.0571501,21117.0,21116.0,0.006]
[1674182994636,2.42164351,21117.0,21116.0,0.006]
[1674182997672,2.05749564,21117.0,21116.0,0.006]
[1674182997925,1.65901754,21117.0,21116.0,0.006]
[1674182998727,1.54582704,21117.0,21116.0,0.006]
[1674182998983,1.489264,21117.0,21116.0,0.006]
[1674183000861,1.489264,21117.0,21116.0,0.01773783]
[1674183002211,1.27357256,21117.0,21116.0,0.01773783]
[1674183002473,0.97357256,21117.0,21116.0,0.01773783]
[1674183002782,0.50002056,21117.0,21116.0,0.12430783]
[1674183003049,0.50002056,21117.0,21116.0,0.01773783]
[1674183003869,0.80002056,21117.0,21116.0,0.01773783]
[1674183004133,0.913232,21117.0,21116.0,0.01773783]
[1674183004390,0.80002056,21117.0,21116.0,0.01773783]
[1674183004931,0.913232,21117.0,21116.0,0.01773783]
[1674183005706,0.80002056,21117.0,21116.0,0.01773783]
[1674183005960,0.913232,21117.0,21116.0,0.01773783]
[1674183006470,1.08300648,21117.0,21116.0,0.01773783]
[1674183006727,1.92403008,21117.0,21116.0,0.01773783]
[1674183006985,2.31829957,21117.0,21116.0,0.01773783]
[1674183007244,2.20600563,21117.0,21116.0,0.01773783]
[1674183007509,1.47846616,21117.0,21116.0,0.01173783]
[1674183007763,1.62166898,21117.0,21116.0,0.01273783]
[1674183008044,1.15181597,21117.0,21116.0,0.01273783]
[1674183008312,1.03857256,21117.0,21116.0,0.01273783]
[1674183008584,1.06581597,21117.0,21116.0,0.34156783]
[1674183008823,1.15081597,21117.0,21116.0,0.32614406]
[1674183009079,0.56402056,21117.0,21116.0,0.32614406]
[1674183010911,0.86402056,21117.0,21116.0,0.32614406]
[1674183011222,0.86402056,21117.0,21116.0,0.01263506]
[1674183011452,0.86402056,21117.0,21116.0,0.32924206]
[1674183011453,0.56402056,21117.0,21116.0,0.32924206]
[1674183012707,0.09046856,21117.0,21116.0,0.32924206]
[1674183014574,0.00513286,21118.0,21116.0,0.76289367]
[1674183014842,0.00513286,21118.0,21117.0,0.66665287]
[1674183016695,0.01313286,21118.0,21117.0,0.67365287]
[1674183018764,0.01313286,21118.0,21117.0,0.335091]
[1674183022314,0.01313286,21118.0,21117.0,0.77285984]
[1674183022577,0.01313286,21118.0,21117.0,1.24641184]
[1674183023618,0.00468,21119.0,21118.0,0.1]
[1674183023883,0.00468,21119.0,21118.0,0.78939916]
[1674183025463,0.00468,21119.0,21118.0,0.79639916]
[1674183025464,0.00568,21119.0,21118.0,0.79639916]
[1674183025726,0.00568,21119.0,21118.0,0.69639916]
[1674183026236,0.00468,21119.0,21118.0,0.68939916]
[1674183026502,0.00568,21119.0,21118.0,0.69539916]
[1674183026771,0.00468,21119.0,21118.0,0.68939916]
[1674183027014,0.00468,21119.0,21118.0,0.78039916]
[1674183030409,0.00468,21119.0,21118.0,1.25392816]
[1674183031459,0.00468,21119.0,21118.0,1.72745716]
[1674183032037,0.00457771,21119.0,21118.0,0.871962]
[1674183034619,0.00457771,21119.0,21118.0,0.398433]
[1674183035948,0.10705771,21119.0,21118.0,0.398433]
[1674183036166,0.52030112,21119.0,21118.0,0.091]
[1674183036701,0.99380812,21119.0,21118.0,0.091]
[1674183037818,0.89132812,21119.0,21118.0,0.091]
[1674183038354,0.47808471,21119.0,21118.0,0.091]
[1674183038641,0.77808471,21119.0,21118.0,0.091]
[1674183038901,0.47808471,21119.0,21118.0,0.091]
[1674183039155,0.77808471,21119.0,21118.0,0.091]
[1674183039410,0.89132812,21119.0,21118.0,0.091]
[1674183039664,1.06118113,21119.0,21118.0,0.091]
[1674183039920,1.23371272,21119.0,21118.0,0.091]
[1674183040418,1.06126856,21119.0,21118.0,0.091]
[1674183041402,0.89141555,21119.0,21118.0,0.091]
[1674183042580,1.06126856,21119.0,21118.0,0.091]
[1674183042798,0.89141555,21119.0,21118.0,0.091]
[1674183043025,1.06126856,21119.0,21118.0,0.091]
[1674183044585,0.94793772,21119.0,21118.0,0.091]
[1674183045159,1.66652335,21119.0,21118.0,0.091]
[1674183045465,2.86654686,21119.0,21118.0,0.091]
[1674183045728,3.02296317,21119.0,21118.0,0.091]
[1674183046013,3.02438928,21119.0,21118.0,0.091]
[1674183046272,3.36687098,21119.0,21116.0,0.01163506]
[1674183046531,2.65735219,21119.0,21116.0,0.01163506]
[1674183046792,0.285775,21118.0,21116.0,0.01163506]
[1674183047054,0.1,21118.0,21116.0,0.01163506]
[1674183047327,1.69110756,21117.0,21116.0,0.01163506]
[1674183047589,1.79110756,21117.0,21116.0,0.01163506]
[1674183048105,1.82710756,21117.0,21116.0,0.01863506]
[1674183048357,2.60065956,21117.0,21116.0,0.01163506]
[1674183048694,2.60865956,21117.0,21116.0,0.01863506]
[1674183048899,2.60065956,21117.0,21116.0,0.01163506]
[1674183049166,2.60865956,21117.0,21116.0,0.01863506]
[1674183049430,3.06613369,21117.0,21116.0,0.01863506]
[1674183050203,3.05813369,21117.0,21116.0,0.01163506]
[1674183050461,3.06613369,21117.0,21116.0,0.01863506]
[1674183051001,2.60865956,21117.0,21116.0,0.01863506]
[1674183053606,2.73232814,21117.0,21116.0,0.01863506]
[1674183055340,3.014824,21117.0,21116.0,0.01863506]
[1674183056063,3.01483748,21117.0,21116.0,0.01863506]
[1674183056317,2.73232814,21117.0,21116.0,0.01863506]
[1674183056574,3.22343033,21117.0,21116.0,0.007]
[1674183059182,5.06997455,21117.0,21116.0,0.007]
[1674183061263,4.24731663,21117.0,21116.0,0.007]
[1674183061518,4.09186397,21117.0,21116.0,0.007]
[1674183061801,3.39186396,21117.0,21116.0,0.007]
[1674183062319,3.18113308,21117.0,21116.0,0.007]
[1674183066126,3.85922693,21117.0,21116.0,0.007]
[1674183066399,4.34182912,21117.0,21116.0,0.007]
[1674183066728,3.66373527,21117.0,21116.0,0.007]
[1674183067688,3.18113308,21117.0,21116.0,0.007]
[1674183069491,4.05569267,21117.0,21116.0,0.007]
[1674183069492,4.05682467,21117.0,21116.0,0.007]
[1674183070259,4.39497451,21117.0,21116.0,0.007]
[1674183070554,4.48141014,21117.0,21116.0,0.007]
[1674183070850,5.01339447,21117.0,21116.0,0.007]
[1674183071399,3.61754283,21117.0,21116.0,0.007]
[1674183071628,3.95613244,21117.0,21116.0,0.007]
[1674183071938,3.61754283,21117.0,21116.0,0.007]
[1674183072985,3.09083259,21117.0,21116.0,0.007]
[1674183073277,3.02426381,21117.0,21116.0,0.007]
[1674183073543,2.55815936,21117.0,21116.0,0.007]
[1674183073805,2.7275948,21117.0,21116.0,0.007]
[1674183074066,2.72759643,21117.0,21116.0,0.007]
[1674183074369,3.02339373,21117.0,21116.0,0.007]
[1674183074833,2.82378724,21117.0,21116.0,0.007]
[1674183074834,3.2173878,21117.0,21116.0,0.007]
[1674183076968,2.82378724,21117.0,21116.0,0.007]
[1674183077244,3.33239177,21117.0,21116.0,0.007]
[1674183077482,3.10634126,21117.0,21116.0,0.007]
[1674183078244,3.3324735,21117.0,21116.0,0.007]
[1674183078518,3.09784126,21117.0,21116.0,0.007]
[1674183079290,2.81528724,21117.0,21116.0,0.007]
[1674183079887,2.81471725,21117.0,21116.0,0.007]
[1674183080376,3.49764977,21117.0,21116.0,0.007]
[1674183081158,3.15330686,21117.0,21116.0,0.007]
[1674183083518,2.81471725,21117.0,21116.0,0.007]
[1674183085474,3.19653763,21117.0,21116.0,0.007]
[1674183089155,3.89653764,21117.0,21116.0,0.007]
[1674183089645,3.80566662,21117.0,21116.0,0.007]
[1674183089883,3.89744037,21117.0,21116.0,0.007]
[1674183090338,2.84454437,21117.0,21116.0,0.007]
[1674183090605,3.35409637,21117.0,21116.0,0.007]
[1674183094310,3.35409637,21117.0,21113.0,0.36310644]
[1674183094311,2.96337326,21117.0,21113.0,0.36310644]
[1674183094578,2.86541416,21117.0,21116.0,0.001]
[1674183095635,2.86541416,21117.0,21111.0,0.83398602]
[1674183095907,3.12582991,21117.0,21113.0,0.001]
[1674183096177,3.12582991,21117.0,21111.0,1.03038867]
[1674183096178,2.86541416,21117.0,21111.0,1.03038867]
[1674183096440,0.23595141,21116.0,21111.0,0.68314575]
[1674183096718,1.420824,21115.0,21111.0,0.48882478]
[1674183096981,1.420824,21115.0,21113.0,0.001]
[1674183097207,1.420824,21115.0,21111.0,0.8349747]
[1674183097467,1.456824,21115.0,21111.0,0.48982478]
[1674183098314,0.3,21114.0,21111.0,0.48982478]
[1674183098576,0.11340482,21112.0,21111.0,0.48882478]
[1674183098835,0.88707088,21112.0,21111.0,0.48882478]
[1674183099376,0.773664,21112.0,21111.0,0.48882478]
[1674183099651,0.782664,21112.0,21111.0,0.106]
[1674183099904,0.773664,21112.0,21111.0,0.1]
[1674183100165,0.782664,21112.0,21111.0,0.106]
[1674183100434,0.782664,21112.0,21111.0,0.1]
[1674183100740,0.791664,21112.0,21111.0,0.106]